fUSD/lending_fUSD_20240624
["ID","MTS","AMOUNT","RATE_DAILY","PERIOD"]
[330272622,1719221435049,-500.0,0.00019178,2]
[330272623,1719221435062,-500.0,0.00019178,2]
[330272624,1719221435076,-500.0,0.00019178,2]
[330272625,1719221435090,-500.0,0.00019178,2]
[330272626,1719221435101,-500.0,0.00019178,2]
[330272627,1719221435112,-648.27324589,0.00019178,2]
[330272628,1719221435123,-500.0,0.00019178,2]
[330272629,1719221435134,-500.0,0.00019178,2]
[330272630,1719221435146,-500.0,0.00019178,2]
[330272631,1719221435156,-500.0,0.00019178,2]
[330272632,1719221435167,-500.0,0.00019178,2]
[330272633,1719221435178,-250.0,0.00019178,2]
[330272634,1719221435190,-500.0,0.00019178,2]
[330272635,1719221435201,-500.0,0.00019178,2]
[330272636,1719221435212,-500.0,0.00019178,2]
[330272637,1719221435222,-500.0,0.00019178,2]
[330272638,1719221435232,-621.54526222,0.00019178,2]
[330272639,1719221435242,-500.0,0.00019178,2]
[330272640,1719221435251,-500.0,0.00019178,2]
[330272641,1719221435263,-500.0,0.00019178,2]
[330272642,1719221435273,-1004.34,0.00019178,2]
[330272643,1719221435283,-500.0,0.00019178,2]
[330272644,1719221435293,-500.0,0.00019178,2]
[330272645,1719221435303,-500.0,0.00019178,2]
[330272646,1719221435314,-500.0,0.00019178,2]
[330272647,1719221435325,-500.0,0.00019178,2]
[330272648,1719221435337,-227.46228983,0.00019178,2]
[330272649,1719221435348,-500.0,0.00019178,2]
[330272650,1719221435361,-500.0,0.00019178,2]
[330272651,1719221435385,-500.0,0.00019178,2]
[330272652,1719221435397,-500.0,0.00019178,2]
[330272653,1719221435409,-500.0,0.00019178,2]
[330272654,1719221435420,-500.0,0.00019178,2]
[330272655,1719221435431,-500.0,0.00019178,2]
[330272656,1719221435443,-500.0,0.00019178,2]
[330272657,1719221435454,-514.4,0.00019178,2]
[330272658,1719221435466,-547.64576185,0.00019178,2]
[330272659,1719221435477,-500.0,0.00019178,2]
[330272660,1719221435489,-500.0,0.00019178,2]
[330272661,1719221435500,-460.58419044,0.00019178,2]
[330272662,1719221435512,-500.0,0.00019178,2]
[330272663,1719221435523,-578.82,0.00019178,2]
[330272664,1719221435555,-500.0,0.00019178,2]
[330272665,1719221435568,-500.0,0.00019178,2]
[330272666,1719221435579,-500.0,0.00019178,2]
[330272667,1719221435589,-500.0,0.00019178,2]
[330272668,1719221435600,-500.0,0.00019178,2]
[330272669,1719221435610,-500.0,0.00019178,2]
[330272670,1719221435621,-500.0,0.00019178,2]
[330272671,1719221435632,-500.0,0.00019178,2]
[330272672,1719221435642,-500.0,0.00019178,2]
[330272673,1719221435653,-952.68,0.00019178,2]
[330272674,1719221435664,-674.88,0.00019178,2]
[330272675,1719221435675,-500.0,0.00019178,2]
[330272676,1719221435686,-894.67,0.00019178,2]
[330272677,1719221435697,-623.4593476,0.00019178,2]
[330272678,1719221435707,-500.0,0.00019178,2]
[330272679,1719221435718,-500.0,0.00019178,2]
[330272680,1719221435729,-500.0,0.00019178,2]
[330272681,1719221435739,-500.0,0.00019178,2]
[330272682,1719221435749,-558.45937085,0.00019178,2]
[330272683,1719221435758,-509.74,0.00019178,2]
[330272684,1719221435767,-515.99,0.00019178,2]
[330272685,1719221435777,-500.0,0.00019178,2]
[330272686,1719221435787,-600.19440038,0.00019178,2]
[330272687,1719221435797,-500.0,0.00019178,2]
[330272688,1719221435808,-272.00861991,0.00019178,2]
[330272689,1719221435819,-500.0,0.00019178,2]
[330272690,1719221435829,-677.43,0.00019178,2]
[330272691,1719221435839,-500.0,0.00019178,2]
[330272692,1719221435849,-500.0,0.00019178,2]
[330272693,1719221435859,-500.0,0.00019178,2]
[330272694,1719221435869,-500.0,0.00019178,2]
[330272695,1719221435879,-611.04,0.00019178,2]
[330272696,1719221435889,-500.0,0.00019178,2]
[330272697,1719221435904,-659.6,0.00019178,2]
[330272698,1719221435921,-500.0,0.00019178,2]
[330272699,1719221435936,-500.0,0.00019178,2]
[330272700,1719221435950,-986.08,0.00019178,2]
[330272701,1719221435963,-603.3214971,0.00019178,2]
[330272702,1719221435979,-500.0,0.00019178,2]
[330272703,1719221435994,-500.0,0.00019178,2]
[330272704,1719221436010,-613.86,0.00019178,2]
[330272705,1719221436025,-825.81,0.00019178,2]
[330272706,1719221436042,-500.0,0.00019178,2]
[330272707,1719221436076,-500.0,0.00019178,2]
[330272708,1719221436091,-500.0,0.00019178,2]
[330272709,1719221436105,-707.48,0.00019178,2]
[330272710,1719221436120,-586.10664087,0.00019178,2]
[330272711,1719221436134,-500.0,0.00019178,2]
[330272712,1719221436148,-621.76,0.00019178,2]
[330272713,1719221436163,-767.98,0.00019178,2]
[330272714,1719221436174,-556.03,0.00019178,2]
[330272715,1719221436185,-500.0,0.00019178,2]
[330272716,1719221436199,-515.97675756,0.00019178,2]
[330272717,1719221436212,-563.64,0.00019178,2]
[330272718,1719221436226,-500.0,0.00019178,2]
[330272719,1719221436239,-500.0,0.00019178,2]
[330272720,1719221436254,-500.0,0.00019178,2]
[330272721,1719221436271,-619.87560275,0.00019178,2]
[330272722,1719221436289,-500.0,0.00019178,2]
[330272723,1719221436301,-500.0,0.00019178,2]
[330272724,1719221436314,-500.0,0.00019178,2]
[330272725,1719221436329,-500.0,0.00019178,2]
[330272726,1719221436346,-500.0,0.00019178,2]
[330272727,1719221436363,-500.0,0.00019178,2]
[330272728,1719221436384,-500.0,0.00019178,2]
[330272729,1719221436399,-605.28,0.00019178,2]
[330272730,1719221436414,-500.0,0.00019178,2]
[330272731,1719221436430,-500.0,0.00019178,2]
[330272732,1719221436444,-500.0,0.00019178,2]
[330272733,1719221436458,-500.0,0.00019178,2]
[330272734,1719221436471,-520.08668272,0.00019178,2]
[330272735,1719221436486,-500.0,0.00019178,2]
[330272736,1719221436500,-500.0,0.00019178,2]
[330272737,1719221436514,-500.0,0.00019178,2]
[330272738,1719221436533,-500.0,0.00019178,2]
[330272739,1719221436558,-500.0,0.00019178,2]
[330272740,1719221436579,-503.69713956,0.00019178,2]
[330272741,1719221436594,-500.0,0.00019178,2]
[330272742,1719221436609,-500.0,0.00019178,2]
[330272743,1719221436623,-500.0,0.00019178,2]
[330272744,1719221436637,-500.0,0.00019178,2]
[330272745,1719221436652,-500.0,0.00019178,2]
[330272746,1719221436666,-692.24,0.00019178,2]
[330272747,1719221436681,-500.0,0.00019178,2]
[330272748,1719221436695,-629.87,0.00019178,2]
[330272749,1719221436709,-500.0,0.00019178,2]
[330272750,1719221436724,-632.79,0.00019178,2]
[330272751,1719221436740,-500.0,0.00019178,2]
[330272752,1719221436755,-628.39620197,0.00019178,2]
[330272753,1719221436770,-500.0,0.00019178,2]
[330272754,1719221436784,-500.0,0.00019178,2]
[330272755,1719221436798,-545.4,0.00019178,2]
[330272756,1719221436813,-500.0,0.00019178,2]
[330272757,1719221436828,-1355.31,0.00019178,2]
[330272758,1719221436844,-500.0,0.00019178,2]
[330272759,1719221436858,-500.0,0.00019178,2]
[330272760,1719221436872,-527.05,0.00019178,2]
[330272761,1719221436887,-541.54380686,0.00019178,2]
[330272762,1719221436901,-827.28,0.00019178,2]
[330272763,1719221436916,-500.0,0.00019178,2]
[330272764,1719221436931,-417.36382013,0.00019178,2]
[330272765,1719221436944,-500.0,0.00019178,2]
[330272766,1719221436959,-500.0,0.00019178,2]
[330272767,1719221436973,-500.0,0.00019178,2]
[330272768,1719221436987,-490.58902277,0.00019178,2]
[330272769,1719221437002,-500.0,0.00019178,2]
[330272770,1719221437018,-500.0,0.00019178,2]
[330272771,1719221437032,-500.0,0.00019178,2]
[330272772,1719221437047,-500.0,0.00019178,2]
[330272773,1719221437062,-723.76,0.00019178,2]
[330272774,1719221437094,-532.01,0.00019178,2]
[330272775,1719221437108,-500.0,0.00019178,2]
[330272776,1719221437126,-851.06,0.00019178,2]
[330272777,1719221437140,-500.0,0.00019178,2]
[330272778,1719221437156,-246.19774123,0.00019178,2]
[330272779,1719221437172,-500.0,0.00019178,2]
[330272780,1719221437185,-500.0,0.00019178,2]
[330272781,1719221437199,-500.0,0.00019178,2]
[330272782,1719221437214,-860.24,0.00019178,2]
[330272783,1719221437228,-500.0,0.00019178,2]
[330272784,1719221437243,-500.0,0.00019178,2]
[330272785,1719221437259,-500.0,0.00019178,2]
[330272786,1719221437273,-500.0,0.00019178,2]
[330272787,1719221437287,-500.0,0.00019178,2]
[330272788,1719221437301,-500.0,0.00019178,2]
[330272789,1719221437315,-500.0,0.00019178,2]
[330272790,1719221437331,-302.0,0.00019178,2]
[330272791,1719221437346,-500.0,0.00019178,2]
[330272792,1719221437361,-500.0,0.00019178,2]
[330272793,1719221437391,-538.67376535,0.00019178,2]
[330272794,1719221437405,-504.12514686,0.00019178,2]
[330272795,1719221437419,-727.25,0.00019178,2]
[330272796,1719221437437,-212.44724895,0.00019178,2]
[330272797,1719221437451,-637.91,0.00019178,2]
[330272798,1719221437466,-648.58,0.00019178,2]
[330272799,1719221437481,-500.0,0.00019178,2]
[330272800,1719221437497,-764.02,0.00019178,2]
[330272801,1719221437511,-500.0,0.00019178,2]
[330272802,1719221437526,-639.0,0.00019178,2]
[330272803,1719221437545,-500.0,0.00019178,2]
[330272804,1719221437562,-500.0,0.00019178,2]
[330272805,1719221437577,-500.0,0.00019178,2]
[330272806,1719221437592,-500.0,0.00019178,2]
[330272807,1719221437607,-500.0,0.00019178,2]
[330272808,1719221437623,-500.0,0.00019178,2]
[330272809,1719221437638,-500.0,0.00019178,2]
[330272810,1719221437653,-500.0,0.00019178,2]
[330272811,1719221437668,-500.0,0.00019178,2]
[330272812,1719221437683,-500.0,0.00019178,2]
[330272813,1719221437697,-500.0,0.00019178,2]
[330272814,1719221437712,-752.54,0.00019178,2]
[330272815,1719221437727,-500.0,0.00019178,2]
[330272816,1719221437742,-500.0,0.00019178,2]
[330272817,1719221437965,-552.19,0.00019178,2]
[330272818,1719221437981,-500.0,0.00019178,2]
[330272819,1719221437997,-675.49,0.00019178,2]
[330272820,1719221438012,-500.0,0.00019178,2]
[330272821,1719221438027,-934.49,0.00019178,2]
[330272822,1719221438043,-500.0,0.00019178,2]
[330272823,1719221438058,-500.0,0.00019178,2]
[330272824,1719221438074,-500.0,0.00019178,2]
[330272825,1719221438093,-500.0,0.00019178,2]
[330272826,1719221438108,-508.81,0.00019178,2]
[330272827,1719221438124,-500.0,0.00019178,2]
[330272828,1719221438139,-500.0,0.00019178,2]
[330272829,1719221438154,-541.88,0.00019178,2]
[330272830,1719221438176,-499.24904734,0.00019178,2]
[330272831,1719221438192,-500.0,0.00019178,2]
[330272832,1719221438207,-500.0,0.00019178,2]
[330272833,1719221438222,-500.0,0.00019178,2]
[330272834,1719221438237,-500.0,0.00019178,2]
[330272835,1719221438253,-428.18480745,0.00019178,2]
[330272836,1719221438270,-500.0,0.00019178,2]
[330272837,1719221438284,-500.0,0.00019178,2]
[330272838,1719221438299,-500.0,0.00019178,2]
[330272839,1719221438313,-500.0,0.00019178,2]
[330272840,1719221438328,-500.0,0.00019178,2]
[330272841,1719221438356,-500.0,0.00019178,2]
[330272842,1719221438372,-500.0,0.00019178,2]
[330272843,1719221438388,-724.72,0.00019178,2]
[330272844,1719221438409,-500.0,0.00019178,2]
[330272845,1719221438423,-500.0,0.00019178,2]
[330272846,1719221438442,-500.0,0.00019178,2]
[330272847,1719221438456,-500.0,0.00019178,2]
[330272848,1719221438470,-650.21,0.00019178,2]
[330272849,1719221438488,-500.0,0.00019178,2]
[330272850,1719221438503,-500.0,0.00019178,2]
[330272851,1719221438518,-647.16,0.00019178,2]
[330272852,1719221438535,-500.0,0.00019178,2]
[330272853,1719221438551,-500.0,0.00019178,2]
[330272854,1719221438567,-500.0,0.00019178,2]
[330272855,1719221438582,-500.0,0.00019178,2]
[330272856,1719221438597,-679.63,0.00019178,2]
[330272857,1719221438611,-557.15377668,0.00019178,2]
[330272858,1719221438626,-500.0,0.00019178,2]
[330272859,1719221438640,-500.0,0.00019178,2]
[330272860,1719221438656,-500.0,0.00019178,2]
[330272861,1719221438671,-740.35,0.00019178,2]
[330272862,1719221438685,-849.74,0.00019178,2]
[330272863,1719221438699,-746.5,0.00019178,2]
[330272864,1719221438716,-500.0,0.00019178,2]
[330272865,1719221438732,-500.0,0.00019178,2]
[330272866,1719221438747,-500.0,0.00019178,2]
[330272867,1719221438761,-500.0,0.00019178,2]
[330272868,1719221438778,-500.0,0.00019178,2]
[330272869,1719221438793,-500.0,0.00019178,2]
[330272870,1719221438808,-500.1,0.00019178,2]
[330272871,1719221438824,-587.85,0.00019178,2]
[330272872,1719221438836,-500.0,0.00019178,2]
[330272873,1719221438849,-500.0,0.00019178,2]
[330272874,1719221438862,-500.0,0.00019178,2]
[330272875,1719221438875,-500.0,0.00019178,2]
[330272876,1719221438887,-639.0,0.00019178,2]
[330272877,1719221438901,-500.0,0.00019178,2]
[330272878,1719221438913,-500.0,0.00019178,2]
[330272879,1719221438926,-500.0,0.00019178,2]
[330272880,1719221438937,-706.96,0.00019178,2]
[330272881,1719221438949,-500.0,0.00019178,2]
[330272882,1719221438962,-858.15,0.00019178,2]
[330272883,1719221438974,-500.0,0.00019178,2]
[330272884,1719221439356,-500.0,0.00019178,2]
[330272885,1719221439387,-563.8,0.00019178,2]
[330272886,1719221439421,-500.0,0.00019178,2]
[330272887,1719221439435,-500.0,0.00019178,2]
[330272888,1719221439447,-730.57,0.00019178,2]
[330272889,1719221439460,-606.55,0.00019178,2]
[330272890,1719221439472,-500.0,0.00019178,2]
[330272891,1719221439484,-500.0,0.00019178,2]
[330272892,1719221439496,-559.32,0.00019178,2]
[330272893,1719221439507,-866.29,0.00019178,2]
[330272894,1719221439519,-690.17,0.00019178,2]
[330272895,1719221439532,-815.29,0.00019178,2]
[330272896,1719221439543,-500.0,0.00019178,2]
[330272897,1719221439556,-500.0,0.00019178,2]
[330272898,1719221439568,-500.0,0.00019178,2]
[330272899,1719221439580,-500.0,0.00019178,2]
[330272900,1719221439591,-500.0,0.00019178,2]
[330272901,1719221439603,-883.06,0.00019178,2]
[330272902,1719221439615,-468.35313353,0.00019178,2]
[330272903,1719221439626,-500.0,0.00019178,2]
[330272904,1719221439638,-500.0,0.00019178,2]
[330272905,1719221439650,-500.0,0.00019178,2]
[330272906,1719221439662,-500.0,0.00019178,2]
[330272907,1719221439674,-500.0,0.00019178,2]
[330272908,1719221439686,-500.0,0.00019178,2]
[330272909,1719221439697,-729.24,0.00019178,2]
[330272910,1719221439710,-500.0,0.00019178,2]
[330272911,1719221439732,-500.0,0.00019178,2]
[330272912,1719221439744,-737.88,0.00019178,2]
[330272913,1719221439756,-500.0,0.00019178,2]
[330272914,1719221439768,-500.0,0.00019178,2]
[330272915,1719221439781,-500.0,0.00019178,2]
[330272916,1719221439792,-500.0,0.00019178,2]
[330272917,1719221439804,-500.0,0.00019178,2]
[330272918,1719221439816,-500.0,0.00019178,2]
[330272919,1719221439832,-500.0,0.00019178,2]
[330272920,1719221439844,-500.0,0.00019178,2]
[330272921,1719221439855,-500.0,0.00019178,2]
[330272922,1719221439867,-500.0,0.00019178,2]
[330272923,1719221439879,-500.0,0.00019178,2]
[330272924,1719221439892,-500.0,0.00019178,2]
[330272925,1719221439904,-500.0,0.00019178,2]
[330272926,1719221439915,-500.0,0.00019178,2]
[330272927,1719221439928,-500.0,0.00019178,2]
[330272928,1719221439940,-500.0,0.00019178,2]
[330272929,1719221439951,-500.0,0.00019178,2]
[330272930,1719221439965,-815.27,0.00019178,2]
[330272931,1719221439977,-840.12,0.00019178,2]
[330272932,1719221439988,-500.0,0.00019178,2]
[330272933,1719221440000,-500.0,0.00019178,2]
[330272934,1719221440012,-500.0,0.00019178,2]
[330272935,1719221440025,-500.0,0.00019178,2]
[330272936,1719221440038,-500.0,0.00019178,2]
[330272937,1719221440050,-500.0,0.00019178,2]
[330272938,1719221440063,-500.0,0.00019178,2]
[330272939,1719221440077,-500.0,0.00019178,2]
[330272940,1719221440093,-500.0,0.00019178,2]
[330272941,1719221440105,-500.0,0.00019178,2]
[330272942,1719221440119,-500.0,0.00019178,2]
[330272943,1719221440134,-443.49381846,0.00019178,2]
[330272944,1719221440148,-500.0,0.00019178,2]
[330272945,1719221440160,-500.0,0.00019178,2]
[330272946,1719221440175,-500.0,0.00019178,2]
[330272947,1719221440189,-500.0,0.00019178,2]
[330272948,1719221440200,-500.0,0.00019178,2]
[330272949,1719221440212,-597.51741026,0.00019178,2]
[330272950,1719221440226,-500.0,0.00019178,2]
[330272951,1719221440238,-500.0,0.00019178,2]
[330272952,1719221440251,-500.0,0.00019178,2]
[330272953,1719221440266,-500.0,0.00019178,2]
[330272954,1719221440279,-741.45,0.00019178,2]
[330272955,1719221440291,-500.0,0.00019178,2]
[330272956,1719221440305,-500.0,0.00019178,2]
[330272957,1719221440316,-500.0,0.00019178,2]
[330272958,1719221440330,-500.0,0.00019178,2]
[330272959,1719221440341,-840.22,0.00019178,2]
[330272960,1719221440354,-500.0,0.00019178,2]
[330272961,1719221440367,-500.0,0.00019178,2]
[330272962,1719221440379,-500.0,0.00019178,2]
[330272963,1719221440392,-500.0,0.00019178,2]
[330272964,1719221440404,-500.0,0.00019178,2]
[330272965,1719221440417,-500.0,0.00019178,2]
[330272966,1719221440428,-494.12,0.00019178,2]
[330272967,1719221440440,-500.0,0.00019178,2]
[330272968,1719221440456,-945.66,0.00019178,2]
[330272969,1719221440468,-604.79,0.00019178,2]
[330272970,1719221440480,-500.0,0.00019178,2]
[330272971,1719221440492,-500.0,0.00019178,2]
[330272972,1719221440504,-500.0,0.00019178,2]
[330272973,1719221440517,-500.0,0.00019178,2]
[330272974,1719221440530,-500.0,0.00019178,2]
[330272975,1719221440542,-500.0,0.00019178,2]
[330272976,1719221440554,-639.28,0.00019178,2]
[330272977,1719221440565,-500.0,0.00019178,2]
[330272978,1719221440578,-479.7385,0.00019178,2]
[330272979,1719221440589,-500.0,0.00019178,2]
[330272980,1719221440600,-500.0,0.00019178,2]
[330272981,1719221440612,-500.0,0.00019178,2]
[330272982,1719221440623,-500.0,0.00019178,2]
[330272983,1719221440635,-500.0,0.00019178,2]
[330272984,1719221440647,-500.0,0.00019178,2]
[330272985,1719221440667,-500.0,0.00019178,2]
[330272986,1719221440679,-500.0,0.00019178,2]
[330272987,1719221440695,-517.92,0.00019178,2]
[330272988,1719221440707,-559.6,0.00019178,2]
[330272989,1719221440719,-500.0,0.00019178,2]
[330272990,1719221440731,-500.0,0.00019178,2]
[330272991,1719221440742,-500.0,0.00019178,2]
[330272992,1719221440754,-935.12,0.00019178,2]
[330272993,1719221440772,-500.0,0.00019178,2]
[330272994,1719221440785,-500.0,0.00019178,2]
[330272995,1719221440797,-500.0,0.00019178,2]
[330272996,1719221440809,-500.0,0.00019178,2]
[330272997,1719221440821,-500.0,0.00019178,2]
[330272998,1719221440834,-500.0,0.00019178,2]
[330272999,1719221440846,-500.0,0.00019178,2]
[330273000,1719221440859,-500.0,0.00019178,2]
[330273001,1719221440877,-500.0,0.00019178,2]
[330273002,1719221440890,-500.0,0.00019178,2]
[330273003,1719221440904,-500.0,0.00019178,2]
[330273004,1719221440916,-297.90690765,0.00019178,2]
[330273005,1719221440929,-957.36,0.00019178,2]
[330273006,1719221440941,-500.0,0.00019178,2]
[330273007,1719221440953,-543.91,0.00019178,2]
[330273008,1719221440965,-500.0,0.00019178,2]
[330273009,1719221440980,-500.0,0.00019178,2]
[330273010,1719221440993,-500.0,0.00019178,2]
[330273011,1719221441005,-500.0,0.00019178,2]
[330273012,1719221441018,-500.0,0.00019178,2]
[330273015,1719221441030,-219.44151994,0.00019178,2]
[330273019,1719221441044,-500.0,0.00019178,2]
[330273020,1719221441055,-500.0,0.00019178,2]
[330273022,1719221441068,-500.0,0.00019178,2]
[330273026,1719221441096,-500.0,0.00019178,2]
[330273030,1719221441109,-505.08,0.00019178,2]
[330273034,1719221441123,-201.48530875,0.00019178,2]
[330273037,1719221441135,-500.0,0.00019178,2]
[330273040,1719221441148,-586.36,0.00019178,2]
[330273042,1719221441161,-500.0,0.00019178,2]
[330273043,1719221441175,-500.0,0.00019178,2]
[330273044,1719221441192,-500.0,0.00019178,2]
[330273045,1719221441206,-500.0,0.00019178,2]
[330273046,1719221441218,-500.0,0.00019178,2]
[330273047,1719221441230,-500.0,0.00019178,2]
[330273048,1719221441242,-500.0,0.00019178,2]
[330273049,1719221441255,-500.0,0.00019178,2]
[330273050,1719221441269,-500.0,0.00019178,2]
[330273051,1719221441281,-319.87987894,0.00019178,2]
[330273052,1719221441729,-257.69726089,0.00019178,2]
[330273061,1719221441991,-264.20286017,0.00019178,2]
[330273062,1719221442003,-47.71295451,0.00019178,2]
[330273063,1719221442020,-452.28704549,0.00019178,2]
[330273064,1719221442032,-500.0,0.00019178,2]
[330273065,1719221442044,-500.0,0.00019178,2]
[330273066,1719221442057,-698.57,0.00019178,2]
[330273067,1719221442069,-500.0,0.00019178,2]
[330273068,1719221442088,-500.0,0.00019178,2]
[330273069,1719221442100,-836.32,0.00019178,2]
[330273070,1719221442111,-500.0,0.00019178,2]
[330273071,1719221442123,-491.41968326,0.00019178,2]
[330273072,1719221442140,-8.58031674,0.00019178,2]
[330273073,1719221442152,-500.83288042,0.00019178,2]
[330273074,1719221442164,-588.59,0.00019178,2]
[330273075,1719221442176,-500.0,0.00019178,2]
[330273076,1719221442188,-610.78105563,0.00019178,2]
[330273077,1719221442199,-500.54961433,0.00019178,2]
[330273078,1719221442211,-626.87,0.00019178,2]
[330273079,1719221442224,-500.0,0.00019178,2]
[330273080,1719221442236,-794.26,0.00019178,2]
[330273081,1719221442247,-657.52,0.00019178,2]
[330273082,1719221442261,-242.08215656,0.00019178,2]
[330273083,1719221442279,-257.91784344,0.00019178,2]
[330273084,1719221442291,-500.0,0.00019178,2]
[330273085,1719221442302,-500.0,0.00019178,2]
[330273086,1719221442315,-500.0,0.00019178,2]
[330273087,1719221442327,-500.0,0.00019178,2]
[330273088,1719221442339,-500.0,0.00019178,2]
[330273089,1719221442351,-500.0,0.00019178,2]
[330273090,1719221442363,-500.0,0.00019178,2]
[330273091,1719221442376,-500.0,0.00019178,2]
[330273092,1719221442389,-477.16847728,0.00019178,2]
[330273093,1719221442400,-64.53127824,0.00019178,2]
[330273094,1719221442416,-435.46872176,0.00019178,2]
[330273095,1719221442435,-791.91,0.00019178,2]
[330273096,1719221442448,-500.0,0.00019178,2]
[330273097,1719221442461,-500.0,0.00019178,2]
[330273098,1719221442473,-416.00237636,0.00019178,2]
[330273099,1719221442484,-475.01890188,0.00019178,2]
[330273100,1719221442499,-24.98109812,0.00019178,2]
[330273101,1719221442511,-304.16150516,0.00019178,2]
[330273193,1719221444748,-461.49,0.00015982,2]
[330273194,1719221444759,-461.49,0.00018246,2]
[330273195,1719221444770,-883.0,0.00019178,2]
[330273196,1719221444781,-1390.37849484,0.00019178,2]
[330273197,1719221444793,-896.28,0.00019178,2]
[330273198,1719221444805,-608.41,0.00019178,2]
[330273199,1719221444815,-500.0,0.00019178,2]
[330273200,1719221444826,-500.0,0.00019178,2]
[330273202,1719221444837,-500.0,0.00019178,2]
[330273204,1719221444847,-500.0,0.00019178,2]
[330273206,1719221444858,-500.0,0.00019178,2]
[330273208,1719221444869,-500.0,0.00019178,2]
[330273210,1719221444880,-500.0,0.00019178,2]
[330273211,1719221444891,-500.0,0.00019178,2]
[330273212,1719221444904,-500.0,0.00019178,2]
[330273213,1719221444916,-100.45150516,0.00019178,2]
[330273214,1719221444930,-284.64340056,0.00019178,2]
[330273215,1719221444944,-933.86894919,0.00019178,2]
[330273216,1719221444958,-1473.68614509,0.00019178,2]
[330273217,1719221444969,-500.0,0.00019178,2]
[330273218,1719221444980,-53.50442855,0.00019178,2]
[330273219,1719221444994,-258.27298721,0.00019178,2]
[330273220,1719221445009,-188.22258424,0.00019178,2]
[330273221,1719221445020,-529.67,0.00019178,2]
[330273222,1719221445031,-500.0,0.00019178,2]
[330273223,1719221445042,-294.86533708,0.00019178,2]
[330273224,1719221445056,-205.13466292,0.00019178,2]
[330273225,1719221445067,-500.0,0.00019178,2]
[330273226,1719221445082,-500.0,0.00019178,2]
[330273227,1719221445098,-500.0,0.00019178,2]
[330273228,1719221445109,-500.0,0.00019178,2]
[330273229,1719221445120,-500.0,0.00019178,2]
[330273230,1719221445144,-635.89,0.00019178,2]
[330273231,1719221445155,-500.0,0.00019178,2]
[330273232,1719221445166,-500.0,0.00019178,2]
[330273233,1719221445177,-548.73349152,0.00019178,2]
[330273234,1719221445190,-513.97,0.00019178,2]
[330273235,1719221445200,-500.0,0.00019178,2]
[330273236,1719221445212,-500.0,0.00019178,2]
[330273237,1719221445223,-500.0,0.00019178,2]
[330273238,1719221445234,-500.0,0.00019178,2]
[330273239,1719221445245,-500.0,0.00019178,2]
[330273240,1719221445255,-500.0,0.00019178,2]
[330273241,1719221445267,-500.0,0.00019178,2]
[330273242,1719221445277,-1014.35,0.00019178,2]
[330273243,1719221445288,-500.0,0.00019178,2]
[330273244,1719221445298,-1027.87,0.00019178,2]
[330273245,1719221445310,-726.38,0.00019178,2]